[Event "Early-Titled-Tuesday-Blitz-February-27-2024"]
[Site "Chess.com"]
[Date "2024.02.27"]
[Round "10"]
[White "Knightmare1014"]
[Black "NovakRatko"]
[Result "0-1"]
[WhiteElo "2317"]
[BlackElo "2480"]
[TimeControl "180+1"]
[EndTime "9:56:13 PST"]
[Termination "NovakRatko won by checkmate"]

1. e4 {[%clk 0:03:00.9]} 1... d5 {[%clk 0:02:16.1]} 2. exd5 {[%clk 0:02:58.7]}
2... c6 {[%clk 0:02:15.8]} 3. dxc6 {[%clk 0:02:57]} 3... Nxc6 {[%clk 0:02:15.6]}
4. Nf3 {[%clk 0:02:56.8]} 4... e5 {[%clk 0:02:16]} 5. d3 {[%clk 0:02:52.5]} 5...
Bc5 {[%clk 0:02:14.1]} 6. Be2 {[%clk 0:02:52]} 6... Nf6 {[%clk 0:02:14.3]} 7. h3
{[%clk 0:02:49.7]} 7... Bf5 {[%clk 0:02:10.5]} 8. O-O {[%clk 0:02:49.3]} 8... h6
{[%clk 0:02:09]} 9. Be3 {[%clk 0:02:49]} 9... Bxe3 {[%clk 0:02:08.6]} 10. fxe3
{[%clk 0:02:49.1]} 10... Qb6 {[%clk 0:02:09.5]} 11. Qd2 {[%clk 0:02:43.7]} 11...
e4 {[%clk 0:02:00.5]} 12. Nh4 {[%clk 0:02:35.8]} 12... Be6 {[%clk 0:01:59.1]}
13. Nc3 {[%clk 0:02:30.8]} 13... exd3 {[%clk 0:01:51.4]} 14. cxd3 {[%clk
0:02:28.1]} 14... O-O-O {[%clk 0:01:29.9]} 15. Kh1 {[%clk 0:02:16.5]} 15... Ne5
{[%clk 0:01:18.7]} 16. d4 {[%clk 0:02:12.1]} 16... Kb8 {[%clk 0:01:16.6]} 17.
Na4 {[%clk 0:02:07.3]} 17... Qd6 {[%clk 0:01:08.1]} 18. Qc2 {[%clk 0:01:54.3]}
18... Nc6 {[%clk 0:00:49.1]} 19. Nf5 {[%clk 0:01:49.7]} 19... Bxf5 {[%clk
0:00:41.7]} 20. Qxf5 {[%clk 0:01:49.2]} 20... Rhe8 {[%clk 0:00:35.2]} 21. Bf3
{[%clk 0:00:54.1]} 21... Rxe3 {[%clk 0:00:32.8]} 22. d5 {[%clk 0:00:51.4]} 22...
Nd4 {[%clk 0:00:27.7]} 23. Qb1 {[%clk 0:00:38]} 23... Nxf3 {[%clk 0:00:26.7]}
24. Rxf3 {[%clk 0:00:37.3]} 24... Rxf3 {[%clk 0:00:26.7]} 25. gxf3 {[%clk
0:00:37.6]} 25... Qxd5 {[%clk 0:00:27]} 26. Qf1 {[%clk 0:00:32.9]} 26... Nh5
{[%clk 0:00:25.9]} 27. Nc3 {[%clk 0:00:32.2]} 27... Ng3+ {[%clk 0:00:24.7]} 28.
Kg2 {[%clk 0:00:29.3]} 28... Qg5 {[%clk 0:00:24.4]} 29. Qe1 {[%clk 0:00:22]}
29... Rd2+ {[%clk 0:00:20.3]} 30. Qxd2 {[%clk 0:00:13.5]} 30... Qxd2+ {[%clk
0:00:18]} 31. Kxg3 {[%clk 0:00:14.4]} 31... Qxb2 {[%clk 0:00:18.5]} 32. Re1
{[%clk 0:00:12.6]} 32... Qxc3 {[%clk 0:00:18.8]} 33. Re8+ {[%clk 0:00:13.2]}
33... Kc7 {[%clk 0:00:18.9]} 34. Re7+ {[%clk 0:00:13.9]} 34... Kc6 {[%clk
0:00:19.2]} 35. Rxf7 {[%clk 0:00:14.5]} 35... Qe5+ {[%clk 0:00:19.3]} 36. f4
{[%clk 0:00:12.8]} 36... Qc3+ {[%clk 0:00:16.2]} 37. Kg4 {[%clk 0:00:11.8]}
37... a5 {[%clk 0:00:15.9]} 38. Kf5 {[%clk 0:00:10.8]} 38... b5 {[%clk
0:00:15.8]} 39. Rf8 {[%clk 0:00:11.1]} 39... Kb6 {[%clk 0:00:14.9]} 40. Rb8+
{[%clk 0:00:10.4]} 40... Kc7 {[%clk 0:00:14.5]} 41. Rxb5 {[%clk 0:00:09.5]}
41... Qd3+ {[%clk 0:00:14.9]} 42. Ke6 {[%clk 0:00:09.6]} 42... Qxb5 {[%clk
0:00:15.2]} 43. Kf7 {[%clk 0:00:10.5]} 43... Qb2 {[%clk 0:00:14.2]} 44. Kg6
{[%clk 0:00:10.5]} 44... Qf6+ {[%clk 0:00:14.6]} 45. Kh5 {[%clk 0:00:10.5]}
45... Qf5+ {[%clk 0:00:14.9]} 46. Kh4 {[%clk 0:00:10.3]} 46... Qxf4+ {[%clk
0:00:15.4]} 47. Kh5 {[%clk 0:00:11.2]} 47... Qf7+ {[%clk 0:00:15]} 48. Kh4
{[%clk 0:00:11.4]} 48... Qxa2 {[%clk 0:00:15.3]} 49. Kh5 {[%clk 0:00:11.7]}
49... Qd5+ {[%clk 0:00:15.2]} 50. Kh4 {[%clk 0:00:12.6]} 50... Qe4+ {[%clk
0:00:15]} 51. Kh5 {[%clk 0:00:12.8]} 51... Qf5+ {[%clk 0:00:15.1]} 52. Kh4
{[%clk 0:00:13]} 52... Qxh3+ {[%clk 0:00:15.4]} 53. Kxh3 {[%clk 0:00:12.8]}
53... a4 {[%clk 0:00:16.1]} 54. Kh4 {[%clk 0:00:13.3]} 54... a3 {[%clk
0:00:16.5]} 55. Kh5 {[%clk 0:00:14.2]} 55... a2 {[%clk 0:00:17.1]} 56. Kg6
{[%clk 0:00:15.1]} 56... a1=Q {[%clk 0:00:17.3]} 57. Kh7 {[%clk 0:00:16]} 57...
h5 {[%clk 0:00:17.2]} 58. Kg8 {[%clk 0:00:16.9]} 58... h4 {[%clk 0:00:17.9]} 59.
Kf8 {[%clk 0:00:15.4]} 59... g5 {[%clk 0:00:18.3]} 60. Ke8 {[%clk 0:00:15.5]}
60... Qe5+ {[%clk 0:00:17]} 61. Kf7 {[%clk 0:00:15.3]} 61... Qf5+ {[%clk
0:00:16.6]} 62. Ke7 {[%clk 0:00:15.4]} 62... g4 {[%clk 0:00:15.6]} 63. Ke8
{[%clk 0:00:15.5]} 63... Kd6 {[%clk 0:00:15.5]} 64. Kd8 {[%clk 0:00:15.6]} 64...
Qf8# {[%clk 0:00:15.2]} 0-1

[Event "Early-Titled-Tuesday-Blitz-February-27-2024"]
[Site "Chess.com"]
[Date "2024.02.27"]
[Round "10"]
[White "ansko1999"]
[Black "Zohid6"]
[Result "0-1"]
[WhiteElo "2742"]
[BlackElo "2873"]
[TimeControl "180+1"]
[EndTime "9:56:14 PST"]
[Termination "Zohid6 won by resignation"]

1. Nf3 {[%clk 0:03:00.9]} 1... Nf6 {[%clk 0:02:59.7]} 2. c4 {[%clk 0:02:59.7]}
2... e6 {[%clk 0:02:59.8]} 3. g3 {[%clk 0:02:58.5]} 3... d5 {[%clk 0:02:59.9]}
4. Bg2 {[%clk 0:02:58.8]} 4... d4 {[%clk 0:02:59.5]} 5. O-O {[%clk 0:02:57]}
5... c5 {[%clk 0:02:59.6]} 6. d3 {[%clk 0:02:55.5]} 6... Nc6 {[%clk 0:03:00.5]}
7. e3 {[%clk 0:02:50.5]} 7... Be7 {[%clk 0:03:00.4]} 8. exd4 {[%clk 0:02:48]}
8... cxd4 {[%clk 0:03:01.3]} 9. Na3 {[%clk 0:02:35.4]} 9... O-O {[%clk
0:02:58.9]} 10. Rb1 {[%clk 0:02:32.2]} 10... a5 {[%clk 0:02:57.6]} 11. Nc2
{[%clk 0:02:31.3]} 11... e5 {[%clk 0:02:57.8]} 12. Re1 {[%clk 0:02:22.6]} 12...
Bd6 {[%clk 0:02:56.5]} 13. a3 {[%clk 0:02:22.1]} 13... a4 {[%clk 0:02:55.9]} 14.
c5 {[%clk 0:02:11.4]} 14... Bc7 {[%clk 0:02:53.9]} 15. Nb4 {[%clk 0:02:10]}
15... Nd7 {[%clk 0:02:49]} 16. Qc2 {[%clk 0:02:04.4]} 16... Ra5 {[%clk
0:02:46.4]} 17. Bd2 {[%clk 0:01:45.8]} 17... Rxc5 {[%clk 0:02:27.6]} 18. Qxa4
{[%clk 0:01:45.1]} 18... Nb6 {[%clk 0:02:26.8]} 19. Qb3 {[%clk 0:01:41.4]} 19...
Na5 {[%clk 0:02:16.2]} 20. Qd1 {[%clk 0:01:41]} 20... Be6 {[%clk 0:02:16.1]} 21.
Rc1 {[%clk 0:01:36.3]} 21... Rxc1 {[%clk 0:02:05.7]} 22. Bxc1 {[%clk 0:01:33.8]}
22... f6 {[%clk 0:02:03.5]} 23. Nd2 {[%clk 0:01:28.6]} 23... Bd6 {[%clk
0:01:55.6]} 24. Ne4 {[%clk 0:01:23.8]} 24... Be7 {[%clk 0:01:54.5]} 25. f4
{[%clk 0:01:22.3]} 25... Qc8 {[%clk 0:01:38]} 26. fxe5 {[%clk 0:01:15.7]} 26...
fxe5 {[%clk 0:01:38.9]} 27. Bg5 {[%clk 0:01:15.5]} 27... Bxb4 {[%clk 0:00:55]}
28. axb4 {[%clk 0:01:15.3]} 28... Bg4 {[%clk 0:00:54.6]} 29. Qa1 {[%clk
0:01:05.9]} 29... Nb3 {[%clk 0:00:54]} 30. Qa2 {[%clk 0:01:04.9]} 30... Be6
{[%clk 0:00:53.2]} 31. Qa7 {[%clk 0:00:52.7]} 31... Nd5 {[%clk 0:00:45.2]} 32.
Nc5 {[%clk 0:00:36.8]} 32... Nxb4 {[%clk 0:00:28.3]} 33. Nxe6 {[%clk 0:00:28.1]}
33... Qxe6 {[%clk 0:00:29.2]} 34. Qxb7 {[%clk 0:00:28.1]} 34... Nc5 {[%clk
0:00:09.7]} 35. Qxb4 {[%clk 0:00:20.6]} 35... Nxd3 {[%clk 0:00:09.8]} 36. Qb7
{[%clk 0:00:16.7]} 36... Kh8 {[%clk 0:00:09.3]} 37. Rf1 {[%clk 0:00:15.7]} 37...
Rxf1+ {[%clk 0:00:09.4]} 38. Bxf1 {[%clk 0:00:16.2]} 38... h6 {[%clk 0:00:04.5]}
39. Qb8+ {[%clk 0:00:14.5]} 39... Kh7 {[%clk 0:00:01.1]} 40. Bxd3+ {[%clk
0:00:14.3]} 40... e4 {[%clk 0:00:02]} 41. Bf4 {[%clk 0:00:08.1]} 41... exd3
{[%clk 0:00:02.3]} 42. Qb4 {[%clk 0:00:04.1]} 42... g5 {[%clk 0:00:01.5]} 43.
Bd2 {[%clk 0:00:04]} 43... Qe2 {[%clk 0:00:02.2]} 44. Qb7+ {[%clk 0:00:03.3]}
44... Kg6 {[%clk 0:00:02.7]} 45. Qc6+ {[%clk 0:00:03.8]} 45... Kh5 {[%clk
0:00:02.1]} 46. Qg2 {[%clk 0:00:04.1]} 46... Qd1+ {[%clk 0:00:02.4]} 47. Qf1
{[%clk 0:00:02.9]} 47... Qxd2 {[%clk 0:00:03]} 48. h3 {[%clk 0:00:02.5]} 48...
Qe3+ {[%clk 0:00:03]} 49. Kg2 {[%clk 0:00:02.9]} 49... Qe2+ {[%clk 0:00:03]} 50.
Qf2 {[%clk 0:00:02.5]} 50... Kg6 {[%clk 0:00:03.2]} 51. g4 {[%clk 0:00:02.8]}
51... Kg7 {[%clk 0:00:02.8]} 52. b4 {[%clk 0:00:03.3]} 52... Qe4+ {[%clk
0:00:03.2]} 53. Kf1 {[%clk 0:00:03.6]} 53... Qh1+ {[%clk 0:00:03.1]} 54. Qg1
{[%clk 0:00:02.8]} 54... Qxg1+ {[%clk 0:00:04]} 55. Kxg1 {[%clk 0:00:03.4]}
55... d2 {[%clk 0:00:04.9]} 0-1

[Event "Early-Titled-Tuesday-Blitz-February-27-2024"]
[Site "Chess.com"]
[Date "2024.02.27"]
[Round "10"]
[White "ChessQueen"]
[Black "Susal_De_Silva"]
[Result "1-0"]
[WhiteElo "2768"]
[BlackElo "2620"]
[TimeControl "180+1"]
[EndTime "9:56:20 PST"]
[Termination "ChessQueen won on time"]

1. Nf3 {[%clk 0:03:00.9]} 1... Nf6 {[%clk 0:03:00]} 2. g3 {[%clk 0:03:01.2]}
2... b6 {[%clk 0:03:00.4]} 3. Bg2 {[%clk 0:03:00.9]} 3... Bb7 {[%clk 0:03:01.3]}
4. d3 {[%clk 0:03:01.5]} 4... d5 {[%clk 0:03:00.7]} 5. O-O {[%clk 0:02:59.5]}
5... g6 {[%clk 0:03:01.3]} 6. Bf4 {[%clk 0:02:56.4]} 6... Bg7 {[%clk 0:03:01.5]}
7. Qc1 {[%clk 0:02:54.9]} 7... O-O {[%clk 0:03:01.2]} 8. Bh6 {[%clk 0:02:54.7]}
8... c5 {[%clk 0:03:01.8]} 9. Bxg7 {[%clk 0:02:51.4]} 9... Kxg7 {[%clk
0:03:02.7]} 10. Re1 {[%clk 0:02:49.1]} 10... Nc6 {[%clk 0:03:01.3]} 11. e4
{[%clk 0:02:47.9]} 11... dxe4 {[%clk 0:03:01.5]} 12. dxe4 {[%clk 0:02:47.7]}
12... e5 {[%clk 0:02:53.9]} 13. Nc3 {[%clk 0:02:44.6]} 13... Re8 {[%clk
0:02:46]} 14. h4 {[%clk 0:02:35.6]} 14... h6 {[%clk 0:02:42]} 15. Nd2 {[%clk
0:02:16.1]} 15... Nd4 {[%clk 0:02:40.5]} 16. Nc4 {[%clk 0:02:13.2]} 16... b5
{[%clk 0:01:52.7]} 17. Ne3 {[%clk 0:02:13.1]} 17... b4 {[%clk 0:01:53.3]} 18.
Ncd5 {[%clk 0:02:11.6]} 18... Ba6 {[%clk 0:01:52.8]} 19. Qd1 {[%clk 0:02:02.3]}
19... Nxd5 {[%clk 0:01:29.7]} 20. Nxd5 {[%clk 0:01:58.2]} 20... Bb7 {[%clk
0:01:24.3]} 21. c3 {[%clk 0:01:55.8]} 21... bxc3 {[%clk 0:01:20.9]} 22. bxc3
{[%clk 0:01:56.7]} 22... Nb5 {[%clk 0:01:17.3]} 23. Qb3 {[%clk 0:01:53.9]} 23...
Bxd5 {[%clk 0:00:36.9]} 24. Qxb5 {[%clk 0:01:53.2]} 24... Be6 {[%clk 0:00:36.5]}
25. Qxc5 {[%clk 0:01:53.3]} 25... Qf6 {[%clk 0:00:34.5]} 26. Rec1 {[%clk
0:01:49.3]} 26... Red8 {[%clk 0:00:33]} 27. Qe3 {[%clk 0:01:39.1]} 27... g5
{[%clk 0:00:33.4]} 28. hxg5 {[%clk 0:01:18]} 28... hxg5 {[%clk 0:00:34.3]} 29.
f3 {[%clk 0:01:17.6]} 29... Rd7 {[%clk 0:00:27.9]} 30. Rd1 {[%clk 0:01:13.1]}
30... Rxd1+ {[%clk 0:00:25.1]} 31. Rxd1 {[%clk 0:01:14]} 31... Bxa2 {[%clk
0:00:25.4]} 32. Ra1 {[%clk 0:01:13.3]} 32... Be6 {[%clk 0:00:19.7]} 33. Rxa7
{[%clk 0:01:13.1]} 33... Rb8 {[%clk 0:00:19.8]} 34. Ra1 {[%clk 0:01:09.8]} 34...
Rb2 {[%clk 0:00:19.6]} 35. Rc1 {[%clk 0:00:56]} 35... g4 {[%clk 0:00:14.3]} 36.
f4 {[%clk 0:00:50.5]} 36... Bc4 {[%clk 0:00:13.5]} 37. fxe5 {[%clk 0:00:40.3]}
37... Qxe5 {[%clk 0:00:12.8]} 38. Qd4 {[%clk 0:00:39.8]} 38... Qxd4+ {[%clk
0:00:09]} 39. cxd4 {[%clk 0:00:40.7]} 39... Be2 {[%clk 0:00:09.4]} 40. Rc3
{[%clk 0:00:32.9]} 40... Rd2 {[%clk 0:00:09]} 41. d5 {[%clk 0:00:28.9]} 41...
Kf6 {[%clk 0:00:09.4]} 42. Rc7 {[%clk 0:00:21.4]} 42... Bf3 {[%clk 0:00:05.9]}
43. Bxf3 {[%clk 0:00:19.2]} 43... gxf3 {[%clk 0:00:06.8]} 44. Rc3 {[%clk
0:00:19.1]} 44... Ke5 {[%clk 0:00:06]} 45. Rxf3 {[%clk 0:00:17.7]} 45... Kxe4
{[%clk 0:00:06.3]} 46. Rxf7 {[%clk 0:00:17.8]} 46... Rxd5 {[%clk 0:00:06.9]} 47.
Kg2 {[%clk 0:00:18.4]} 47... Rf5 {[%clk 0:00:06.3]} 48. Re7+ {[%clk 0:00:18.4]}
48... Kd5 {[%clk 0:00:03.5]} 49. g4 {[%clk 0:00:16.3]} 49... Kd6 {[%clk
0:00:03.3]} 50. Re1 {[%clk 0:00:13.9]} 50... Re5 {[%clk 0:00:03.6]} 51. Rf1
{[%clk 0:00:14.3]} 51... Ke6 {[%clk 0:00:03.6]} 52. Kg3 {[%clk 0:00:14.9]} 52...
Rd5 {[%clk 0:00:03.7]} 53. Kh4 {[%clk 0:00:14.9]} 53... Rc5 {[%clk 0:00:03.8]}
54. g5 {[%clk 0:00:14.8]} 54... Rc7 {[%clk 0:00:04.2]} 55. Kh5 {[%clk
0:00:14.3]} 55... Rc5 {[%clk 0:00:02.5]} 56. Kh6 {[%clk 0:00:13.8]} 56... Rc2
{[%clk 0:00:01.9]} 57. g6 {[%clk 0:00:13.6]} 57... Rh2+ {[%clk 0:00:02.2]} 58.
Kg7 {[%clk 0:00:13.9]} 58... Rg2 {[%clk 0:00:03.1]} 59. Kh7 {[%clk 0:00:12.2]}
59... Rh2+ {[%clk 0:00:03.4]} 60. Kg8 {[%clk 0:00:12.4]} 60... Rg2 {[%clk
0:00:03.9]} 61. g7 {[%clk 0:00:13.1]} 61... Rg3 {[%clk 0:00:02.3]} 62. Kf8
{[%clk 0:00:11.7]} 1-0

[Event "Early-Titled-Tuesday-Blitz-February-27-2024"]
[Site "Chess.com"]
[Date "2024.02.27"]
[Round "10"]
[White "Kotlyar_K"]
[Black "wannabe2700"]
[Result "0-1"]
[WhiteElo "2595"]
[BlackElo "2755"]
[TimeControl "180+1"]
[EndTime "9:56:22 PST"]
[Termination "wannabe2700 won by checkmate"]

1. d4 {[%clk 0:03:00.9]} 1... f5 {[%clk 0:03:00]} 2. c4 {[%clk 0:03:00.5]} 2...
Nf6 {[%clk 0:03:00.4]} 3. g3 {[%clk 0:03:00.5]} 3... g6 {[%clk 0:03:00.9]} 4.
Nf3 {[%clk 0:02:36.2]} 4... Bg7 {[%clk 0:03:00.7]} 5. Bg2 {[%clk 0:02:36.9]}
5... O-O {[%clk 0:03:01.2]} 6. O-O {[%clk 0:02:37]} 6... d6 {[%clk 0:03:01.6]}
7. Nc3 {[%clk 0:02:37]} 7... c6 {[%clk 0:03:02.2]} 8. Rb1 {[%clk 0:02:34.2]}
8... a5 {[%clk 0:03:02.3]} 9. Qb3 {[%clk 0:02:31.3]} 9... h6 {[%clk 0:03:01]}
10. Rd1 {[%clk 0:02:19.9]} 10... Kh7 {[%clk 0:02:59.8]} 11. a3 {[%clk
0:02:11.6]} 11... Na6 {[%clk 0:02:55.8]} 12. Be3 {[%clk 0:02:09]} 12... Qe8
{[%clk 0:02:54.5]} 13. d5 {[%clk 0:02:06]} 13... cxd5 {[%clk 0:02:32.8]} 14.
Nxd5 {[%clk 0:01:54.9]} 14... a4 {[%clk 0:02:05.5]} 15. Qb6 {[%clk 0:01:44.6]}
15... Bd7 {[%clk 0:01:05.5]} 16. Qxb7 {[%clk 0:01:21.7]} 16... Nxd5 {[%clk
0:00:27.3]} 17. cxd5 {[%clk 0:01:13.5]} 17... Qc8 {[%clk 0:00:24.6]} 18. Qxc8
{[%clk 0:00:44.2]} 18... Rfxc8 {[%clk 0:00:25.5]} 19. Bd4 {[%clk 0:00:44.8]}
19... Rab8 {[%clk 0:00:23.6]} 20. Rd2 {[%clk 0:00:26.7]} 20... Nc5 {[%clk
0:00:20.4]} 21. Bxg7 {[%clk 0:00:25]} 21... Kxg7 {[%clk 0:00:20.8]} 22. Nd4
{[%clk 0:00:25.4]} 22... Rb6 {[%clk 0:00:17.3]} 23. Rc1 {[%clk 0:00:19.6]} 23...
Rcb8 {[%clk 0:00:17.3]} 24. Rcc2 {[%clk 0:00:19.1]} 24... Kf6 {[%clk 0:00:16.8]}
25. h3 {[%clk 0:00:09.1]} 25... g5 {[%clk 0:00:15.8]} 26. f3 {[%clk 0:00:08]}
26... f4 {[%clk 0:00:15.8]} 27. Kf2 {[%clk 0:00:07.8]} 27... Be8 {[%clk
0:00:15.4]} 28. e3 {[%clk 0:00:07.4]} 28... fxe3+ {[%clk 0:00:14]} 29. Kxe3
{[%clk 0:00:08.1]} 29... Bg6 {[%clk 0:00:14.9]} 30. Rc1 {[%clk 0:00:06.9]} 30...
Rxb2 {[%clk 0:00:15.2]} 31. Rxb2 {[%clk 0:00:03.5]} 31... Rxb2 {[%clk
0:00:15.2]} 32. Bf1 {[%clk 0:00:04.1]} 32... Ra2 {[%clk 0:00:14]} 33. Rc3 {[%clk
0:00:03.7]} 33... Bf7 {[%clk 0:00:11.9]} 34. Bc4 {[%clk 0:00:03.2]} 34... Rh2
{[%clk 0:00:11.4]} 35. Ne2 {[%clk 0:00:02.4]} 35... Rxh3 {[%clk 0:00:11.2]} 36.
g4 {[%clk 0:00:02.1]} 36... h5 {[%clk 0:00:10.8]} 37. gxh5 {[%clk 0:00:00.8]}
37... Bxh5 {[%clk 0:00:11.7]} 38. Kf2 {[%clk 0:00:01.5]} 38... Rh2+ {[%clk
0:00:10.9]} 39. Kg3 {[%clk 0:00:01.2]} 39... Rh4 {[%clk 0:00:11.4]} 40. Kg2
{[%clk 0:00:01.5]} 40... Ke5 {[%clk 0:00:11.1]} 41. Ng3 {[%clk 0:00:02.1]} 41...
Bg6 {[%clk 0:00:10.7]} 42. Be2 {[%clk 0:00:02.6]} 42... Kxd5 {[%clk 0:00:10.1]}
43. Re3 {[%clk 0:00:03.3]} 43... e5 {[%clk 0:00:09.9]} 44. Rc3 {[%clk
0:00:02.6]} 44... Rd4 {[%clk 0:00:10.3]} 45. Kf2 {[%clk 0:00:02.6]} 45... Ne6
{[%clk 0:00:10.8]} 46. Ke3 {[%clk 0:00:02.7]} 46... Nf4 {[%clk 0:00:11.1]} 47.
Bf1 {[%clk 0:00:03]} 47... Ke6 {[%clk 0:00:09.2]} 48. Kf2 {[%clk 0:00:03]} 48...
Rd2+ {[%clk 0:00:09.2]} 49. Ke3 {[%clk 0:00:02.9]} 49... Rb2 {[%clk 0:00:09.9]}
50. Ne4 {[%clk 0:00:02.5]} 50... Nd5+ {[%clk 0:00:09.8]} 51. Kd3 {[%clk
0:00:01.3]} 51... Bxe4+ {[%clk 0:00:10.1]} 52. fxe4 {[%clk 0:00:01.2]} 52...
Nxc3 {[%clk 0:00:10.6]} 53. Kxc3 {[%clk 0:00:01.4]} 53... Rf2 {[%clk 0:00:10.9]}
54. Bc4+ {[%clk 0:00:01.2]} 54... Kf6 {[%clk 0:00:11.5]} 55. Bb5 {[%clk
0:00:02]} 55... g4 {[%clk 0:00:12.1]} 56. Bxa4 {[%clk 0:00:02.6]} 56... g3
{[%clk 0:00:12.8]} 57. Bc6 {[%clk 0:00:03.4]} 57... g2 {[%clk 0:00:13.4]} 58.
Kc4 {[%clk 0:00:04.3]} 58... g1=Q {[%clk 0:00:14.3]} 59. Kd5 {[%clk 0:00:05.1]}
59... Qc1 {[%clk 0:00:15.1]} 60. Kxd6 {[%clk 0:00:05.3]} 60... Qxa3+ {[%clk
0:00:15.4]} 61. Kd7 {[%clk 0:00:05.4]} 61... Rd2+ {[%clk 0:00:15.5]} 62. Bd5
{[%clk 0:00:06.3]} 62... Qc5 {[%clk 0:00:14.8]} 63. Ke8 {[%clk 0:00:06.5]} 63...
Rxd5 {[%clk 0:00:14.4]} 64. exd5 {[%clk 0:00:07.4]} 64... Qe7# {[%clk
0:00:14.6]} 0-1

[Event "Early-Titled-Tuesday-Blitz-February-27-2024"]
[Site "Chess.com"]
[Date "2024.02.27"]
[Round "10"]
[White "wonderfultime"]
[Black "Hikaru"]
[Result "1-0"]
[WhiteElo "3129"]
[BlackElo "3231"]
[TimeControl "180+1"]
[EndTime "9:56:35 PST"]
[Termination "wonderfultime won by resignation"]

1. d4 {[%clk 0:03:00.9]} 1... Nf6 {[%clk 0:02:54.7]} 2. Nf3 {[%clk 0:03:01.3]}
2... c5 {[%clk 0:02:54.4]} 3. c3 {[%clk 0:03:00.4]} 3... b6 {[%clk 0:02:54.2]}
4. Bf4 {[%clk 0:03:00.7]} 4... Bb7 {[%clk 0:02:54.5]} 5. e3 {[%clk 0:03:01.3]}
5... d6 {[%clk 0:02:54.7]} 6. Nbd2 {[%clk 0:03:01.4]} 6... Nbd7 {[%clk
0:02:55.1]} 7. h3 {[%clk 0:03:01.9]} 7... g6 {[%clk 0:02:55.7]} 8. Bh2 {[%clk
0:02:59.5]} 8... Bg7 {[%clk 0:02:55.3]} 9. Bd3 {[%clk 0:03:00.1]} 9... O-O
{[%clk 0:02:55.4]} 10. O-O {[%clk 0:03:00.6]} 10... Qc8 {[%clk 0:02:52.7]} 11.
Qe2 {[%clk 0:03:00.6]} 11... d5 {[%clk 0:02:44.1]} 12. Rfd1 {[%clk 0:02:52]}
12... e6 {[%clk 0:02:43.9]} 13. Rac1 {[%clk 0:02:50.7]} 13... c4 {[%clk
0:02:43.1]} 14. Bc2 {[%clk 0:02:50.9]} 14... b5 {[%clk 0:02:43.7]} 15. e4 {[%clk
0:02:49.3]} 15... dxe4 {[%clk 0:02:36.5]} 16. Nxe4 {[%clk 0:02:49.3]} 16... Nxe4
{[%clk 0:02:36.3]} 17. Bxe4 {[%clk 0:02:50.2]} 17... Bxe4 {[%clk 0:02:37]} 18.
Qxe4 {[%clk 0:02:50.9]} 18... Nf6 {[%clk 0:02:37.7]} 19. Qh4 {[%clk 0:02:43.2]}
19... Nd5 {[%clk 0:02:36.7]} 20. Be5 {[%clk 0:02:38.9]} 20... f6 {[%clk
0:02:36.3]} 21. Bd6 {[%clk 0:02:39.1]} 21... Rd8 {[%clk 0:02:34.1]} 22. Bc5
{[%clk 0:02:29.5]} 22... e5 {[%clk 0:02:14]} 23. Re1 {[%clk 0:01:07.9]} 23...
Nf4 {[%clk 0:02:09.9]} 24. Ba3 {[%clk 0:00:20.6]} 24... Nd3 {[%clk 0:01:59.5]}
25. dxe5 {[%clk 0:00:21.2]} 25... fxe5 {[%clk 0:01:53.5]} 26. Ng5 {[%clk
0:00:21.6]} 26... h6 {[%clk 0:01:52.8]} 27. Ne4 {[%clk 0:00:22.3]} 27... Nxc1
{[%clk 0:01:50.7]} 28. Rxc1 {[%clk 0:00:23.2]} 28... Qe6 {[%clk 0:01:35.6]} 29.
Re1 {[%clk 0:00:22.9]} 29... Rd5 {[%clk 0:01:33.5]} 30. Bc5 {[%clk 0:00:20.1]}
30... Qf5 {[%clk 0:01:20.5]} 31. f3 {[%clk 0:00:19.6]} 31... a6 {[%clk
0:01:18.9]} 32. Be3 {[%clk 0:00:19.7]} 32... g5 {[%clk 0:01:18.9]} 33. Qf2
{[%clk 0:00:19.3]} 33... Rad8 {[%clk 0:01:18.8]} 34. Kh2 {[%clk 0:00:17.5]}
34... Rd1 {[%clk 0:01:08.7]} 35. Rxd1 {[%clk 0:00:17.2]} 35... Rxd1 {[%clk
0:01:09.6]} 36. Qe2 {[%clk 0:00:18.1]} 36... Rd5 {[%clk 0:01:07.7]} 37. b3
{[%clk 0:00:18.1]} 37... Qc8 {[%clk 0:01:05.3]} 38. b4 {[%clk 0:00:17.1]} 38...
Rd3 {[%clk 0:00:54.3]} 39. Bc5 {[%clk 0:00:17.3]} 39... Qf5 {[%clk 0:00:53.3]}
40. Be3 {[%clk 0:00:17.3]} 40... Bf8 {[%clk 0:00:52.8]} 41. Bc1 {[%clk
0:00:15.8]} 41... Be7 {[%clk 0:00:51.9]} 42. a4 {[%clk 0:00:15.9]} 42... h5
{[%clk 0:00:40.1]} 43. axb5 {[%clk 0:00:15.8]} 43... axb5 {[%clk 0:00:41]} 44.
Ng3 {[%clk 0:00:13.4]} 44... Qg6 {[%clk 0:00:37.3]} 45. Bd2 {[%clk 0:00:09.9]}
45... g4 {[%clk 0:00:25.3]} 46. Ne4 {[%clk 0:00:09.1]} 46... gxf3 {[%clk
0:00:23.2]} 47. gxf3 {[%clk 0:00:10]} 47... Qf5 {[%clk 0:00:22.2]} 48. Kg2
{[%clk 0:00:10.4]} 48... h4 {[%clk 0:00:22.1]} 49. Be1 {[%clk 0:00:10.7]} 49...
Kf7 {[%clk 0:00:21.9]} 50. Bf2 {[%clk 0:00:08.6]} 50... Qg6+ {[%clk 0:00:21.6]}
51. Kh2 {[%clk 0:00:08.3]} 51... Bg5 {[%clk 0:00:21.1]} 52. Kh1 {[%clk
0:00:08.5]} 52... Bf4 {[%clk 0:00:21]} 53. Be1 {[%clk 0:00:07.3]} 53... Qf5
{[%clk 0:00:18.8]} 54. Kg2 {[%clk 0:00:07.5]} 54... Rd8 {[%clk 0:00:16.8]} 55.
Bxh4 {[%clk 0:00:07.2]} 55... Rg8+ {[%clk 0:00:16.7]} 56. Bg3 {[%clk 0:00:05.6]}
56... Bxg3 {[%clk 0:00:10.9]} 57. Nd6+ {[%clk 0:00:05.8]} 57... Ke6 {[%clk
0:00:10.7]} 58. Nxf5 {[%clk 0:00:06.7]} 58... Bf4+ {[%clk 0:00:10.9]} 59. Kf1
{[%clk 0:00:06.7]} 59... Kxf5 {[%clk 0:00:11.8]} 60. Qe4+ {[%clk 0:00:07.4]}
60... Kg5 {[%clk 0:00:12.1]} 61. Qc6 {[%clk 0:00:07.5]} 61... Rd8 {[%clk
0:00:12.4]} 62. Qxb5 {[%clk 0:00:07.8]} 62... Rd1+ {[%clk 0:00:11.7]} 63. Ke2
{[%clk 0:00:08]} 63... Rd2+ {[%clk 0:00:12.6]} 64. Ke1 {[%clk 0:00:08.7]} 64...
Rd3 {[%clk 0:00:12.4]} 65. Qxc4 {[%clk 0:00:08.1]} 65... Rxf3 {[%clk 0:00:13.1]}
66. b5 {[%clk 0:00:08.8]} 66... e4 {[%clk 0:00:13.5]} 67. b6 {[%clk 0:00:07.5]}
67... Bg3+ {[%clk 0:00:13.1]} 68. Ke2 {[%clk 0:00:07.3]} 68... Kf4 {[%clk
0:00:09.6]} 69. Qf7+ {[%clk 0:00:07.3]} 69... Ke5 {[%clk 0:00:08.8]} 70. Qe7+
{[%clk 0:00:06.5]} 70... Kd5 {[%clk 0:00:09]} 71. b7 {[%clk 0:00:06.9]} 71...
Kc6 {[%clk 0:00:08.4]} 72. Qxe4+ {[%clk 0:00:06.8]} 1-0